Workbook

Sheet Tabelle2 (2)
B2: Entfernungsmatrix von Speyer Rhein-Km 399,5 bis Moselmündung Rhein-KM 592,2 | C2: Speyer Stadthafen | D2: Reffenthal | E2: Mannheim Tankstelle | F2: Kiefweiher | G2: Neckarmündung | H2: Lambertheim | I2: Worms Yachthafen Tankstelle | J2: Worms Floßhafen | K2: Gernsheim | L2: Eicher See | M2: Erfelder Altrhein | N2: Oppenheim Tankstelle | O2: Mainmündung | P2: Mainz Winterhafen | Q2: Mainz Zollhafen | R2: Wiesbaden-Schierstein | S2: Bootstankstelle Schneider | T2: Rüdesheim Yachthafen | U2: Bingen | V2: St. Goar Stadthafen Tankstelle | W2: Lahnmündung | X2: Koblenz Lach | Y2: Koblenz Ehrenbreitstein | Z2: Moselmündung
B3: Speyer Stadthafen | C3: 0 | D3: 6.8 | E3: 13 | F3: 19.4 | G3: 28.5 | H3: 40.7 | I3: 42.6 | J3: 43.6 | K3: 62.6 | L3: 66.5 | M3: 74.4 | N3: 80.9 | O3: 97 | P3: 97.7 | Q3: 101.6 | R3: 106.2 | S3: 107.2 | T3: 125.9 | U3: 128 | V3: 157.5 | W3: 186.2 | X3: 190.5 | Y3: 191.9 | Z3: 192.7 | AI3: Strecke | AJ3: Tempo in km/h | AK3: Fahrtzeit
B4: Reffenthal | C4: 6.8 | D4: 0 | E4: =E3-C4 -> 6.2 | F4: =F3-$C$4 -> 12.6 | G4: 21.7 | H4: 33.9 | I4: 35.8 | J4: 36.8 | K4: 55.8 | L4: 59.7 | M4: 67.6 | N4: 74.1 | O4: 90.2 | P4: 90.9 | Q4: 94.8 | R4: 99.4 | S4: 100.4 | T4: 119.1 | U4: 121.2 | V4: 150.7 | W4: 179.4 | X4: 183.7 | Y4: 185.1 | Z4: 185.9 | AI4: 118.3 | AJ4: 20 | AK4: =(AI4/AJ4)/24 -> 05:54:54
B5: Mannheim Tankstelle | C5: 13 | D5: =$C5-D$3 -> 6.2 | E5: 0 | F5: =F3-$C$5 -> 6.4 | G5: =G3-$C$5 -> 15.5 | H5: 27.7 | I5: 29.6 | J5: 30.6 | K5: 49.6 | L5: 53.5 | M5: 61.4 | N5: 67.9 | O5: 84 | P5: 84.7 | Q5: 88.6 | R5: 93.2 | S5: 94.2 | T5: 112.9 | U5: 115 | V5: 144.5 | W5: 173.2 | X5: 177.5 | Y5: 178.9 | Z5: 179.7 | AI5: Zur Fahrtzeitberechnung Doppelklick in der Tabelle auf die ausgewählte Fahrtstreckeund und Tempo eingeben.
B6: Kiefweiher | C6: 19.4 | D6: =$C6-D$3 -> 12.6 | E6: =$C6-E$3 -> 6.4 | F6: 0 | G6: =G$3-$C6 -> 9.1 | H6: =H$3-$C$6 -> 21.3 | I6: 23.2 | J6: 24.2 | K6: 43.2 | L6: 47.1 | M6: 55 | N6: 61.5 | O6: 77.6 | P6: 78.3 | Q6: 82.2 | R6: 86.8 | S6: 87.8 | T6: 106.5 | U6: 108.6 | V6: 138.1 | W6: 166.8 | X6: 171.1 | Y6: 172.5 | Z6: 173.3
B7: Neckarmündung | C7: 28.5 | D7: 21.7 | E7: 15.5 | F7: =$C7-F$3 -> 9.1 | G7: 0 | H7: =H$3-$C7 -> 12.2 | I7: =I$3-$C7 -> 14.1 | J7: 15.1 | K7: 34.1 | L7: 38 | M7: 45.9 | N7: 52.4 | O7: 68.5 | P7: 69.2 | Q7: 73.1 | R7: 77.7 | S7: 78.7 | T7: 97.4 | U7: 99.5 | V7: 129 | W7: 157.7 | X7: 162 | Y7: 163.4 | Z7: 164.2
B8: Lambertheim | C8: 40.7 | D8: 33.9 | E8: 27.7 | F8: =$C8-F$3 -> 21.3 | G8: =$C8-G$3 -> 12.2 | H8: 0 | I8: =I$3-$C8 -> 1.9 | J8: 2.9 | K8: 21.9 | L8: 25.8 | M8: 33.7 | N8: 40.2 | O8: 56.3 | P8: 57 | Q8: 60.9 | R8: 65.5 | S8: 66.5 | T8: 85.2 | U8: 87.3 | V8: 116.8 | W8: 145.5 | X8: 149.8 | Y8: 151.2 | Z8: 152
B9: Worms Yachthafen Tankstelle | C9: 42.6 | D9: 35.8 | E9: 29.6 | F9: 23.2 | G9: 14.1 | H9: =$C9-H$3 -> 1.9 | I9: 0 | J9: =J$3-$C9 -> 1 | K9: 20 | L9: 23.9 | M9: 31.8 | N9: 38.3 | O9: 54.4 | P9: 55.1 | Q9: 59 | R9: 63.6 | S9: 64.6 | T9: 83.3 | U9: 85.4 | V9: 114.9 | W9: 143.6 | X9: 147.9 | Y9: 149.3 | Z9: 150.1
B10: Worms Floßhafen | C10: 43.6 | D10: 36.8 | E10: 30.6 | F10: 24.2 | G10: 15.1 | H10: 2.9 | I10: =$C10-I$3 -> 1 | J10: 0 | K10: =K$3-$C10 -> 19 | L10: 22.9 | M10: 30.8 | N10: 37.3 | O10: 53.4 | P10: 54.1 | Q10: 58 | R10: 62.6 | S10: 63.6 | T10: 82.3 | U10: 84.4 | V10: 113.9 | W10: 142.6 | X10: 146.9 | Y10: 148.3 | Z10: 149.1
B11: Gernsheim | C11: 62.6 | D11: 55.8 | E11: 49.6 | F11: 43.2 | G11: 34.1 | H11: 21.9 | I11: 20 | J11: =$C11-J$3 -> 19 | K11: 0 | L11: =L$3-$C11 -> 3.9 | M11: 11.8 | N11: 18.3 | O11: 34.4 | P11: 35.1 | Q11: 39 | R11: 43.6 | S11: 44.6 | T11: 63.3 | U11: 65.4 | V11: 94.9 | W11: 123.6 | X11: 127.9 | Y11: 129.3 | Z11: 130.1
B12: Eicher See | C12: 66.5 | D12: 59.7 | E12: 53.5 | F12: 47.1 | G12: 38 | H12: 25.8 | I12: 23.9 | J12: 22.9 | K12: =$C12-K$3 -> 3.9 | L12: 0 | M12: =M$3-$C12 -> 7.9 | N12: 14.4 | O12: 30.5 | P12: 31.2 | Q12: 35.1 | R12: 39.7 | S12: 40.7 | T12: 59.4 | U12: 61.5 | V12: 91 | W12: 119.7 | X12: 124 | Y12: 125.4 | Z12: 126.2
B13: Erfelder Altrhein | C13: 74.4 | D13: 67.6 | E13: 61.4 | F13: 55 | G13: 45.9 | H13: 33.7 | I13: 31.8 | J13: 30.8 | K13: 11.8 | L13: =$C13-L$3 -> 7.9 | M13: 0 | N13: =N$3-$C13 -> 6.5 | O13: 22.6 | P13: 23.3 | Q13: 27.2 | R13: 31.8 | S13: 32.8 | T13: 51.5 | U13: 53.6 | V13: 83.1 | W13: 111.8 | X13: 116.1 | Y13: 117.5 | Z13: 118.3
B14: Oppenheim Tankstelle | C14: 80.9 | D14: 74.1 | E14: 67.9 | F14: 61.5 | G14: 52.4 | H14: 40.2 | I14: 38.3 | J14: 37.3 | K14: 18.3 | L14: 14.4 | M14: =$C14-M$3 -> 6.5 | N14: 0 | O14: =O$3-$C14 -> 16.1 | P14: 16.8 | Q14: 20.7 | R14: 25.3 | S14: 26.3 | T14: 45 | U14: 47.1 | V14: 76.6 | W14: 105.3 | X14: 109.6 | Y14: 111 | Z14: 111.8
B15: Mainmündung | C15: 97 | D15: 90.2 | E15: 84 | F15: 77.6 | G15: 68.5 | H15: 56.3 | I15: 54.4 | J15: 53.4 | K15: 34.4 | L15: 30.5 | M15: 22.6 | N15: =$C15-N$3 -> 16.1 | O15: 0 | P15: =P$3-$C15 -> 0.7 | Q15: 4.6 | R15: 9.2 | S15: 10.2 | T15: 28.9 | U15: 31 | V15: 60.5 | W15: 89.2 | X15: 93.5 | Y15: 94.9 | Z15: 95.7
B16: Mainz Winterhafen | C16: 97.7 | D16: 90.9 | E16: 84.7 | F16: 78.3 | G16: 69.2 | H16: 57 | I16: 55.1 | J16: 54.1 | K16: 35.1 | L16: 31.2 | M16: 23.3 | N16: 16.8 | O16: =$C16-O$3 -> 0.7 | P16: 0 | Q16: =Q$3-$C16 -> 3.9 | R16: 8.5 | S16: 9.5 | T16: 28.2 | U16: 30.3 | V16: 59.8 | W16: 88.5 | X16: 92.8 | Y16: 94.2 | Z16: 95
B17: Mainz Zollhafen | C17: 101.6 | D17: 94.8 | E17: 88.6 | F17: 82.2 | G17: 73.1 | H17: 60.9 | I17: 59 | J17: 58 | K17: 39 | L17: 35.1 | M17: 27.2 | N17: 20.7 | O17: 4.6 | P17: =$C17-P$3 -> 3.9 | Q17: 0 | R17: =R$3-$C17 -> 4.6 | S17: 5.6 | T17: 24.3 | U17: 26.4 | V17: 55.9 | W17: 84.6 | X17: 88.9 | Y17: 90.3 | Z17: 91.1
B18: Wiesbaden-Schierstein | C18: 106.2 | D18: 99.4 | E18: 93.2 | F18: 86.8 | G18: 77.7 | H18: 65.5 | I18: 63.6 | J18: 62.6 | K18: 43.6 | L18: 39.7 | M18: 31.8 | N18: 25.3 | O18: 9.2 | P18: 8.5 | Q18: =$C18-Q$3 -> 4.6 | R18: 0 | S18: =S$3-$C18 -> 1 | T18: 19.7 | U18: 21.8 | V18: 51.3 | W18: 80 | X18: 84.3 | Y18: 85.7 | Z18: 86.5
B19: Bootstankstelle Schneider | C19: 107.2 | D19: 100.4 | E19: 94.2 | F19: 87.8 | G19: 78.7 | H19: 66.5 | I19: 64.6 | J19: 63.6 | K19: 44.6 | L19: 40.7 | M19: 32.8 | N19: 26.3 | O19: 10.2 | P19: 9.5 | Q19: 5.6 | R19: =$C19-R$3 -> 1 | S19: 0 | T19: =T$3-$C19 -> 18.7 | U19: 20.8 | V19: 50.3 | W19: 79 | X19: 83.3 | Y19: 84.7 | Z19: 85.5
B20: Rüdesheim Yachthafen | C20: 125.9 | D20: 119.1 | E20: 112.9 | F20: 106.5 | G20: 97.4 | H20: 85.2 | I20: 83.3 | J20: 82.3 | K20: 63.3 | L20: 59.4 | M20: 51.5 | N20: 45 | O20: 28.9 | P20: 28.2 | Q20: 24.3 | R20: 19.7 | S20: =$C20-S$3 -> 18.7 | T20: 0 | U20: =U$3-$C20 -> 2.1 | V20: 31.6 | W20: 60.3 | X20: 64.6 | Y20: 66 | Z20: 66.8
B21: Bingen | C21: 128 | D21: 121.2 | E21: 115 | F21: 108.6 | G21: 99.5 | H21: 87.3 | I21: 85.4 | J21: 84.4 | K21: 65.4 | L21: 61.5 | M21: 53.6 | N21: 47.1 | O21: 31 | P21: 30.3 | Q21: 26.4 | R21: 21.8 | S21: 20.8 | T21: =$C21-T$3 -> 2.1 | U21: 0 | V21: =V$3-$C21 -> 29.5 | W21: 58.2 | X21: 62.5 | Y21: 63.9 | Z21: 64.7
B22: St. Goar Stadthafen Tankstelle | C22: 157.5 | D22: 150.7 | E22: 144.5 | F22: 138.1 | G22: 129 | H22: 116.8 | I22: 114.9 | J22: 113.9 | K22: 94.9 | L22: 91 | M22: 83.1 | N22: 76.6 | O22: 60.5 | P22: 59.8 | Q22: 55.9 | R22: 51.3 | S22: 50.3 | T22: 31.6 | U22: =$C22-U$3 -> 29.5 | V22: 0 | W22: =W$3-$C22 -> 28.7 | X22: 33 | Y22: 34.4 | Z22: 35.2 | AC22: =(ADDRESS(AD26+2,AD27+2)) -> $Z$13 | AD22: =INDEX(C3:Z26,AD26,AD27) -> 118.3 | AF22: =INDEX(C3:Z26,AD26,AD27) -> 118.3 | AG22: =INDEX(C3:Z26,AD26+2,AD27+2) -> 
B23: Lahnmündung | C23: 186.2 | D23: 179.4 | E23: 173.2 | F23: 166.8 | G23: 157.7 | H23: 145.5 | I23: 143.6 | J23: 142.6 | K23: 123.6 | L23: 119.7 | M23: 111.8 | N23: 105.3 | O23: 89.2 | P23: 88.5 | Q23: 84.6 | R23: 80 | S23: 79 | T23: 60.3 | U23: 58.2 | V23: =$C23-V$3 -> 28.7 | W23: 0 | X23: =X$3-$C23 -> 4.3 | Y23: =Y$3-$C23 -> 5.7 | Z23: 6.5
B24: Koblenz Lach | C24: 190.5 | D24: 183.7 | E24: 177.5 | F24: 171.1 | G24: 162 | H24: 149.8 | I24: 147.9 | J24: 146.9 | K24: 127.9 | L24: 124 | M24: 116.1 | N24: 109.6 | O24: 93.5 | P24: 92.8 | Q24: 88.9 | R24: 84.3 | S24: 83.3 | T24: 64.6 | U24: 62.5 | V24: =$C24-V$3 -> 33 | W24: =$C24-W$3 -> 4.3 | X24: =$C24-X$3 -> 0 | Y24: =Y$3-$C24 -> 1.4 | Z24: =Z$3-$C24 -> 2.2 | AD24: =INDEX(C3:Z26,AD26,AD27)=AD22 -> TRUE
B25: Koblenz Ehrenbreitstein | C25: 191.9 | D25: 185.1 | E25: 178.9 | F25: 172.5 | G25: 163.4 | H25: 151.2 | I25: 149.3 | J25: 148.3 | K25: 129.3 | L25: 125.4 | M25: 117.5 | N25: 111 | O25: 94.9 | P25: 94.2 | Q25: 90.3 | R25: 85.7 | S25: 84.7 | T25: 66 | U25: 63.9 | V25: 34.4 | W25: 5.7 | X25: =$C25-X$3 -> 1.4 | Y25: 0 | Z25: =Z$3-$C25 -> 0.8
B26: Moselmündung | C26: 192.7 | D26: 185.9 | E26: 179.7 | F26: 173.3 | G26: 164.2 | H26: 152 | I26: 150.1 | J26: 149.1 | K26: 130.1 | L26: 126.2 | M26: 118.3 | N26: 111.8 | O26: 95.7 | P26: 95 | Q26: 91.1 | R26: 86.5 | S26: 85.5 | T26: 66.8 | U26: 64.7 | V26: 35.2 | W26: 6.5 | X26: =$C26-X$3 -> 2.2 | Y26: =$C26-Y$3 -> 0.8 | Z26: 0 | AC26: Zeile | AD26: 11
AC27: Spalte | AD27: 24
